Cogmind - Beta 16 @@@ ROGUE MODE // 2025.10.23 @ 16:28:35 Player: alice_fexa Result: Destroyed by S-10 Pest with Light Assault Rifle Performance ------------- Evolutions (0) 0 Regions Visited (2) 400 Robots Destroyed (3) 15 Value Destroyed (30) 30 Prototype IDs (0) 0 Alien Tech Used (0) 0 Bonus (0) 0 TOTAL SCORE: 445 Bonus ------- None Cogmind --------- Core Integrity 0/250 Matter 291/300 Energy 100/100 System Corruption 1% Temperature Cool (0) Movement Core (50) Location -10/Mines Parts ------- > --- POWER (1) -------- (None) > --- PROPULSION (2) --- Wheel Compact Wheel > --- UTILITY (2) ------ (None) > --- WEAPON (2) ------- (None) > --- INVENTORY (5) ---- Ion Engine Light Ion Engine Small Storage Unit Peak State ------------ > --- POWER ------------ (None) > --- PROPULSION ------- Light Treads Light Treads > --- UTILITY ---------- Small Storage Unit > --- WEAPON ----------- (None) > --- INVENTORY -------- (None) [Rating: 3] Favorites ----------- Power None Propulsion Light Treads Treads Light Treads Leg Aluminum Leg Wheel Wheel Utility Small Storage Unit Storage Small Storage Unit Weapon None Build | -11 -10 -10 ------- Run | Yrd Mat Min Slots Evolved . | . . . Power . | . . . Propulsion . | . . . Utility . | . . . Weapon . | . . . Parts Attached 6 | 3 1 2 Power . | . . . Engine . | . . . Core . | . . . Reactor . | . . . Propulsion 5 | 2 1 2 Treads 2 | 2 . . Leg 1 | . . 1 Wheel 2 | . 1 1 Hover . | . . . Flight . | . . . Utility 1 | 1 . . Device . | . . . Storage 1 | 1 . . Processor . | . . . Hackware . | . . . Protection . | . . . Artifact . | . . . Weapon . | . . . Energy Gun . | . . . Energy Cannon . | . . . Ballistic Gun . | . . . Ballistic Cannon . | . . . Launcher . | . . . Special Weapon . | . . . Impact Weapon . | . . . Slashing Weapon . | . . . Piercing Weapon . | . . . Special Melee Weapon . | . . . Unidentified Prototypes . | . . . Parts Lost 3 | . 1 2 Power . | . . . Propulsion 3 | . 1 2 Utility . | . . . Weapon . | . . . Highest Loss Streak 1 | . 1 1 To Critical Strikes . | . . . Average Backups 4 | 2 4 4 Power 1 | 1 2 2 Propulsion 1 | 1 1 1 Utility . | . 1 1 Weapon . | . . . Tool/Special . | . . . Unused Backups 2 | . . 2 Power 2 | . . 2 Propulsion . | . . . Utility . | . . . Weapon . | . . . Tool/Special . | . . . Average Slot Usage (%) 25 | . 26 25 Treads 14 | . 20 10 Leg 2 | . . 5 Wheel 8 | . 6 9 Peak Build Rating 3 | 3 2 2 Average Rating 1 | 1 1 1 On Entrance 1 | . 2 2 Avg Prop Armor Cover (%) 37 | 41 39 36 Naked Turns 23 | . . 23 Heaviest Build . | . . . Greatest Support 40 | 20 40 3 Greatest Overweight (x) . | . . . Average Overweight (x) . | . . . Largest Inventory Capacity 8 | 8 5 5 Average Capacity 5 | 5 5 5 Most Carried 5 | 5 5 5 Average Carried 4 | 2 4 4 Final Capacity 5 | 5 5 5 Final Carried 5 | 5 4 3 Class Distribution -------------------- 100% | Mutant Dominant Class ---------------- Mutant | -10/Materials Mutant | -10/Mines Resources | -11 -10 -10 ----------- Run | Yrd Mat Min Matter Collected 244 | 224 . 20 Remotely . | . . . Salvage Created . | . . . Parts 1 | . 1 . Haulers Intercepted . | . . . Recyclers Shooed . | . . . Parts Field Recycled . | . . . Retrieved Matter . | . . . Parts Self-Destructed . | . . . Prevented . | . . . Parts Restored . | . . . Kills | -11 -10 -10 ------- Run | Yrd Mat Min Combat Hostiles Destroyed 3 | . 3 . Melee 3 | . 3 . Classes Destroyed 1 | . 1 . Swarmer 3 | . 3 . Best Kill Streak 3 | . 3 . Combat Bots Only 3 | . 3 . Max Kills in Single Turn 1 | . 1 . Gunslinging . | . . . Exploded . | . . . Melee 1 | . 1 . Uniques/NPCs Destroyed . | . . . Combat | -11 -10 -10 -------- Run | Yrd Mat Min Hostile Shots Fired 117 | . 56 61 Missed 41 | . 16 25 Hits 76 | . 40 36 Projectile 76 | . 40 36 Critical Strikes 1 | . . 1 Damage Taken 635 | . 345 290 Core 254 | . 86 168 Absorbed by Shields . | . . . Core Remaining (%) 100 | 100 . . Volleys Fired . | . . . Largest . | . . . Hottest . | . . . Shots Fired . | . . . Gun . | . . . Cannon . | . . . Launcher . | . . . Special . | . . . Kinetic . | . . . Thermal . | . . . Explosive . | . . . Electromagnetic . | . . . Robot Hit Streak . | . . . Robot Miss Streak . | . . . Penetration Max . | . . . Secondary Targets . | . . . Shots Hit Robots . | . . . Core Hits 8 | . 3 5 Critical Kills . | . . . Critical Parts Destroyed . | . . . Critical Strikes . | . . . Melee Attacks . | . . . Impact . | . . . Slashing . | . . . Piercing . | . . . Sneak Attacks . | . . . Combat Hostiles . | . . . Follow-up Attacks . | . . . Damage Inflicted 44 | . 11 33 Guns . | . . . Cannons . | . . . Explosions . | . . . Melee . | . . . Ramming 44 | . 11 33 Kinetic . | . . . Thermal . | . . . Explosive . | . . . Electromagnetic . | . . . Impact . | . . . Slashing . | . . . Piercing . | . . . Highest Corruption 1 | . . 1 Average Corruption 1 | . . 1 Corruption Purged . | . . . Corruption Blocked . | . . . Effects 2 | . . 2 Heat Flow Errors 1 | . . 1 Data Loss (minor) 1 | . . 1 Overload Shots . | . . . Overflow Damage . | . . . Projectiles . | . . . Explosions . | . . . Melee . | . . . Knockbacks . | . . . Impact . | . . . Kinetic . | . . . Secondary . | . . . Self-Inflicted Damage 7 | . . 7 Shots . | . . . Rammed 23 | . 16 7 Targets Rammed 44 | . 19 25 Kicked 18 | . . 18 Crushed 3 | . 3 . Highest Temperature 140 | . . 140 Average Temperature 77 | . . 77 Received Heat Transfer 69 | . 60 9 Siege Activations . | . . . Martial Activations . | . . . Shielding Activations . | . . . Robots Disrupted . | . . . Combat Hostiles . | . . . Robots Corrupted . | . . . Combat Hostiles . | . . . Parts Fried . | . . . Impact Corruptions . | . . . Robots Melted . | . . . Combat Hostiles . | . . . Parts Melted . | . . . Heat Transferred . | . . . Parts Sabotaged . | . . . Parts Stolen . | . . . Parts Stripped . | . . . Power Chain Reactions . | . . . Alert | -11 -10 -10 ------- Run | Yrd Mat Min Maximum Alert Level . | . . . Low Security (%) 100 | 100 100 100 Level 1 . | . . . Level 2 . | . . . Level 3 . | . . . Level 4 . | . . . Level 5 . | . . . High Security . | . . . Max Security . | . . . Peak Influence 150 | . 150 45 Initial 27 | . . 27 Average 32 | . 70 10 Influence Increases 324 | . 234 90 Destroy 0b10 Robot/C 60 | . 60 . Destroy Leader 10 | . 10 . Successful Hack 29 | . 29 . Partial Spotted 15 | . 15 . Lose Combat Pursuer 210 | . 120 90 Influence Decreases 324 | . 164 160 Entered New Map 43 | . . 43 Time Decay 251 | . 154 97 Lost Part 30 | . 10 20 Squads Dispatched 1 | . 1 . Investigation 1 | . 1 . Extermination . | . . . Reinforcement . | . . . Assault . | . . . Garrison . | . . . Intercept . | . . . Searches Triggered . | . . . Construction Impeded . | . . . Haulers Reinforced . | . . . Active Scanning Responses . | . . . Cargo Convoy Interrupts . | . . . Stealth | -11 -10 -10 --------- Run | Yrd Mat Min Distress Signals . | . . . Communications Jammed . | . . . Distress Signals . | . . . Times Spotted 23 | . 13 10 Peak Tracking Total 7 | . 7 5 Tactical Retreats 6 | . 2 4 Traps | -11 -10 -10 ------- Run | Yrd Mat Min Traps Triggered 1 | . 1 . Indirectly . | . . . Trap Hack Attempts . | . . . Triggered . | . . . Disarmed . | . . . Reprogrammed . | . . . Reused . | . . . Traps Extracted . | . . . Installed . | . . . Triggered . | . . . Machines | -11 -10 -10 ---------- Run | Yrd Mat Min Machines Disabled . | . . . Max in Single Turn . | . . . Machines Repaired . | . . . Machines Dismantled . | . . . Machines Sabotaged . | . . . Overloaded Fab Kills . | . . . Hacking | -11 -10 -10 --------- Run | Yrd Mat Min Machines Accessed 5 | . 5 . Terminals 5 | . 5 . Fabricators . | . . . Repair Stations . | . . . Recycling Units . | . . . Scanalyzers . | . . . Garrison Access . | . . . Total Hacks 18 | . 18 . Successful 9 | . 9 . Failed 9 | . 9 . Catastrophic 1 | . 1 . Database Lockouts . | . . . Manual 17 | . 17 . Terminals 18 | . 18 . Fabricators . | . . . Repair Stations . | . . . Recycling Units . | . . . Scanalyzers . | . . . Garrison Access . | . . . Terminal Hacks 2 | . 2 . Locate Traps 1 | . 1 . Zone Layout 1 | . 1 . Fabricator Hacks . | . . . Repair Station Hacks . | . . . Recycling Unit Hacks . | . . . Scanalyzer . | . . . Garrison Access Hacks . | . . . Unauthorized Hacks 7 | . 7 . Terminals 7 | . 7 . Botnet 2 | . 2 . Skim 5 | . 5 . Fabricators . | . . . Repair Stations . | . . . Recycling Units . | . . . Scanalyzers . | . . . Garrison Access . | . . . Data Cores Recovered . | . . . Used . | . . . Hacking Detections 4 | . 4 . Full Trace Events . | . . . Feedback Events . | . . . Feedback Blocked . | . . . Robot Schematics Acquired . | . . . Robots Built . | . . . Authchips . | . . . Time . | . . . Total Robot Build Rating . | . . . Part Schematics Acquired . | . . . Parts Built . | . . . Authchips . | . . . Time . | . . . Total Part Build Rating . | . . . Part Studies Acquired . | . . . Parts Repaired . | . . . Time . | . . . Parts Recycled . | . . . Recycled Matter . | . . . Retrieved Matter . | . . . Retrieved Components . | . . . Parts Scanalyzed . | . . . Part Schematics Acquired . | . . . Parts Damaged . | . . . Bothacking | -11 -10 -10 ------------ Run | Yrd Mat Min Used RIF Installer . | . . . Robots Hacked . | . . . Non-combat . | . . . Combat . | . . . Robot Hacks Applied . | . . . Relay Couplers Released . | . . . Fabnet Peak Effective % . | . . . Robots Rewired . | . . . Allies Hacked . | . . . Hacks Repelled . | . . . Allies | -11 -10 -10 -------- Run | Yrd Mat Min Total Allies . | . . . Largest Group . | . . . Highest-Rated Group . | . . . Highest-Rated Ally . | . . . Total Orders . | . . . Ally Attacks . | . . . Total Damage . | . . . Kills . | . . . Allies Corrupted . | . . . Allies Melted . | . . . Intel | -11 -10 -10 ------- Run | Yrd Mat Min Active Infowar (turns) . | . . . Robot Analysis Total . | . . . Derelict Logs Recovered 1 | . . 1 Drone Launches . | . . . Drone Recoveries . | . . . Exploration | -11 -10 -10 ------------- Run | Yrd Mat Min Turns Passed 876 | 43 338 495 Spaces Moved 838 | 63 260 515 Core 835 | 61 259 515 Treads 3 | 2 1 . Legs . | . . . Wheels . | . . . Hover . | . . . Flight . | . . . Fastest Speed 50 | 50 50 50 Average Speed 50 | 53 50 50 Slowest Speed 160 | 160 160 50 Overloaded Moves . | . . . Propulsion Burnouts . | . . . Robots Hopped . | . . . Potential Cave-ins . | . . . Cave-ins Triggered . | . . . Exploration Rate (%) 46 | 3 47 89 Regions Visited 2 Branch Regions 1 Pre-discovered Areas 3 | . 2 1 Known Exits Taken . | . . . Unknown Exits Taken 2 | 1 1 . Scrap Searched 3 | . . 3 Spaces Dug . | . . . Terrain Destroyed . | . . . Melee . | . . . Projectile . | . . . AOE . | . . . Terrain Rammed . | . . . Walls Destroyed . | . . . Machines Disabled . | . . . Actions | -11 -10 -10 --------- Run | Yrd Mat Min Total 1271 | 70 454 747 Wait 378 | . 175 203 Move 836 | 62 259 515 Hop . | . . . Pick Up 4 | 4 . . Fast Attach 4 | 3 . 1 Attach 3 | . 1 2 Detach 2 | 1 . 1 Swap . | . . . Drop . | . . . Fire . | . . . Melee . | . . . Ram 5 | . . 5 Kick 18 | . . 18 Crush 21 | . 19 2 Escape Stasis . | . . . Rewire . | . . . Trap . | . . . Miscellaneous . | . . . Route ------- -11/Scrapyard -10/Materials (discovered 2 exits: [*Mat] / [*Min]) -10/Mines (discovered 1 exit: [*Mat]) History --------- Turn | Location | Event 7 | -11/Scrapyard | Discovered new exit (range 14) 44 | -11/Scrapyard | Entered Materials 137 | -10/Materials | Discovered new exit (range 14) 218 | -10/Materials | Discovered new exit (range 6) 289 | -10/Materials | Loaded intel: 2 recycling unit locations 311 | -10/Materials | Learned location of 2 exits from Subcaves 317 | -10/Materials | Build established: Mutant 325 | -10/Materials | Learned location of 2 exits from Subcaves 330 | -10/Materials | Learned location of 1 exit from Storage 331 | -10/Materials | Learned location of Subcaves (-10) 356 | -10/Materials | Loaded intel: 1 repair station location 382 | -10/Materials | Entered Mines 383 | -10/Mines | Assembled infested the area 383 | -10/Mines | Learned location of Storage (-9) 588 | -10/Mines | Learned location of 1 exit from Materials 665 | -10/Mines | Discovered new exit (range 15) 806 | -10/Mines | Core integrity fell below 50% 827 | -10/Mines | Core integrity fell below 20% 877 | -10/Mines | Destroyed by S-10 Pest with Light Assault Rifle Last Messages --------------- 00761_ Lgt. Treads destroyed. 00764_ U-05 Engineer builds a Wall. 00804_ Kicked S-10 Pest. 00805_ Kicked S-10 Pest out of the way. 00806_ Kicked S-10 Pest. 00807_ S-10 Pest destroyed. 00807_ Kicked S-10 Pest. 00811_ Kicked S-10 Pest out of the way. 00812_ Kicked S-10 Pest. 00825_ Aluminum Leg destroyed. 00825_ Slammed into S-10 Pest. 00826_ Destabilizing: System corrupted (+1). 00832_ System corrupted: Component data lost. 00837_ Searching scrap... 00837_ Found EM Pulse Gun. 00837_ Found Targeting Computer. 00837_ Found 60 Matter. 00863_ System corrupted: Heat flow error (+165). 00864_ K-01 Serf collects debris. 00871_ Slammed into S-10 Pest. Map ----- +----------------------------------------------------+ | ##### #???? ???????? | | # ## " ##### #????###???????? | | # ## ## ## #???# #??????????????? | | #% #?##### ######???# #??????????????? | | # ##???? #?????????# #??????????????? | | ##???###??????????# #??????????????? | | #????????????????# #??????????????? | | #?????????????#### #??????????????? | | ##????????????## ##?????????????? | | ##?????????????# #?????????????? | | #####???????????# #?????????????? | | ## ##??????????## ##?????????????? | | # %##??????????# ##??????????????? | | # %%%%##????????## r##??????????????? | | %%%%=#???????## =%=#??????????????? | | ## #???????# ! ##?????????????? | | # ### #???????# ###???????????? | | ####?# #???????# ### = ##??????????? | | ###### #???????##??##% ##?????????? | | #????????????#%* k ####??????? | | #???????????## ##?????? | | ### ####???????????# #?????? | | #?# #??????????????# #???? | | ??# #??????????????# % ! ### ##???? | | ??# ####???????????#= %| ##???###????? | | ### ##?#####????#% * @##??????????? | | ### ##??##% ########???? | | ## #?## ## s ##??? | | ### ### #### #??? | | ##??# #??##### #??? | | #???# t ##??????### ##?? | | ##?## #######????## #?? | | ### #?????# #?? | | #?????## ##?? | | # # #######???????###??? | | # #### #??????????????????? | | # #??## #?????????????????? | | #???###### #?????????????????? | | #????????## #?????????????????? | | ####?????????## ##?????????????????? | | ??????????????######??????????????????? | | ??????????????????????????????????????? | | ??????????????????????????????????????? | | | | | | | | | | | | | | | +----------------------------------------------------+ Best States ------------- Heat Dissipation 25 Energy Generation 5 Energy Capacity 100 Matter Stores 300 Matter Capacity 300 Sight Range 16 Terrain Scan Density 10 Evasion (%) 50 Recoil Reduction 2 Item Schematics ----------------- None Robot Schematics ------------------ None Fabricated ------------ Nothing Repaired ---------- Nothing Studied --------- None Alien Tech Used ----------------- None Achievements -------------- None Challenges ------------ None Game ------ Seed ChargeThermoelectricCharger Manual? 0 Play Time 00:08:52 Cumulative 1583.5 hours Start 2025.10.23 @ 16:22:26 End 2025.10.23 @ 16:28:35 Sessions 1 Manual Loads 0 Difficulty Rogue Special Mode None Game No. 1126 Rogue 1086 Adventurer 40 Explorer 0 Win Type - Total 200 Types 86/10/74/2/2/4/16/2/1/3 Lore% 97 Gallery% 97 Achievement% 75 Wizard Run 0 Options --------- Layout 0 ASCII 0 Keyboard 0 Movement Numpad Keybinds 0 Fullscreen 0 Font 20/Terminus Map View 76x50 Zoom Use 0% Tactical HUD 1 Map Filters NONE Filters NONE Steam 1 RUN: 77dfd141-7dcd-4887-80be-a5a832a612b9